[Event "45th FIDE Olympiad 2024"]
[Site "Budapest"]
[Date "2024.09.19"]
[Round "8.144"]
[White "Domingos, Catarino"]
[Black "Vanczak, Tamas"]
[Result "1/2-1/2"]
[ECO "A11"]
[WhiteElo "2229"]
[BlackElo "2401"]
[Annotator "TA"]
[PlyCount "74"]
[EventDate "2024.09.05"]
[EventType "team-tourn"]
[EventCountry "HUN"]
[SourceTitle "playchess.com"]
[Source "ChessBase"]
[SourceQuality "1"]
[WhiteTeam "Angola"]
[BlackTeam "Hungary C"]
[WhiteTeamCountry "ANG"]
[TimeControl "40/5400+30:1800+30"]

{[%evp 9,74,29,9,9,17,35,29,-8,20,29,32,-13,38,30,31,31,66,37,33,14,-4,8,0,6,14,6,7,-28,-49,-99,-70,-72,-75,-66,-66,-80,-66,-100,-22,-25,-12,-11,13,13,15,9,78,81,129,139,139,133,133,125,131,130,128,85,84,4,4,0,83,0,8,0,94]} 1. Nf3 Nf6 2. g3 d5 3. Bg2 c6 4. c4 Bf5 5. Qb3 Qb6 6. O-O Nbd7 7. d3 e6 8. Be3 {White has an edge.} Qa6 9. cxd5 exd5 10. h3 Bc5 (10... Bd6 $11) 11. Bxc5 $14 Nxc5 12. Qc3 Ncd7 13. Nh4 Be6 14. e4 dxe4 15. dxe4 O-O 16. Nd2 Rad8 {[%cal Od7e5]} 17. Rfe1 Qb6 18. Rec1 Ne5 19. Rf1 (19. Rc2 $15 Rd4 20. Nf5 Bxf5 21. exf5) 19... Rd3 20. Qxe5 Rxd2 21. b3 Rfd8 22. Nf5 Bxf5 23. Qxf5 Qd4 (23... Ne8 $17 24. a4 Nc7 (24... Qxb3 25. Qa5 $11)) 24. e5 $11 Nd5 25. e6 {White is weak on the dark squares} fxe6 26. Qxe6+ Kh8 27. Qf7 h6 (27... Nf6 $11 {remains equal.}) 28. Rae1 $1 $16 {[%cal Ba1e1,Be1e7,Be7b7][%mdl 32]} ({And not} 28. Qxb7 Ne3 29. fxe3 Qxe3+ 30. Kh1 (30. Kh2 {gets mated.} Rxg2+ 31. Kh1 Rh2+ 32. Kxh2 Rd2+ 33. Kh1 Qe4+) 30... Rxg2 $17) 28... Nf6 {Prevents Re8+} (28... Qf6 $142 29. Re8+ (29. Qxb7 Rxa2 30. Rc1 Nc3 $14) 29... Rxe8 30. Qxe8+ Kh7) 29. Re7 Rg8 30. Rxb7 Rxa2 31. Bxc6 Rc2 32. Bg2 {White is more active.} a5 33. Re7 Rc3 {[#]} 34. Kh2 (34. g4 $1 $16) 34... Rc2 $11 35. Kg1 (35. Re6 $11) 35... Rc3 $1 $16 {[#]} 36. Kh2 ({Better is} 36. g4 $1 $16) 36... Rc2 $11 37. Kg1 ({White should try} 37. Re6 $11) 37... Rc3 $1 {Weighted Error Value: White=0.18 (very precise) /Black=0.14 (very precise) .  Mistake:       	White=5     	Black=4      Inaccurate:     	White=6     	Black=2      OK:         	White=11    	Black=9      Best:        	White=2     	Black=2      Strong:       	White=1     	Black=2} 1/2-1/2

[Event "45th FIDE Olympiad 2024"]
[Site "Budapest"]
[Date "2024.09.19"]
[Round "8.145"]
[White "Mwali, Chitumbo"]
[Black "Keinanen, Toivo"]
[Result "0-1"]
[WhiteElo "2312"]
[BlackElo "2554"]
[PlyCount "39"]
[EventDate "2024.09.05"]
[EventType "team-tourn"]
[EventCountry "HUN"]
[WhiteTeam "Zambia"]
[BlackTeam "Finland"]
[WhiteTeamCountry "ZAM"]
[BlackTeamCountry "FIN"]
[TimeControl "40/5400+30:1800+30"]

1. Nf3 d5 2. c4 d4 3. g3 Nc6 4. Bg2 e5 5. d3 Bc5 6. O-O Nge7 7. Na3 O-O 8. Nc2 Ng6 9. a3 a5 10. Nd2 Be6 11. Rb1 a4 12. b4 axb3 13. Nxb3 Bd6 14. Nb4 Qd7 15. Qd2 Bh3 16. Bxh3 Qxh3 17. c5 Be7 18. Nd5 Rad8 19. Nxe7+ Ncxe7 20. Qc2 {0-} 0-1

[Event "45th FIDE Olympiad 2024"]
[Site "Budapest"]
[Date "2024.09.19"]
[Round "8.146"]
[White "Sipila, Vilka"]
[Black "Kayonde, Andrew"]
[Result "1-0"]
[WhiteElo "2462"]
[BlackElo "2338"]
[PlyCount "125"]
[EventDate "2024.09.05"]
[EventType "team-tourn"]
[EventCountry "HUN"]
[WhiteTeam "Finland"]
[BlackTeam "Zambia"]
[WhiteTeamCountry "FIN"]
[BlackTeamCountry "ZAM"]
[TimeControl "40/5400+30:1800+30"]

1. e4 d5 2. exd5 Qxd5 3. Nc3 Qd8 4. d4 Nf6 5. Nf3 Bg4 6. h3 Bxf3 7. Qxf3 c6 8. Be3 e6 9. Bd3 Nbd7 10. O-O Bd6 11. Ne4 Nxe4 12. Qxe4 Nf6 13. Qh4 h6 14. c4 Qe7 15. f4 Nd5 16. Qxe7+ Nxe7 17. f5 exf5 18. Bxf5 Nxf5 19. Rxf5 O-O 20. Kf1 Rfe8 21. Ke2 Rad8 22. Raf1 Rd7 23. g4 Rde7 24. R1f3 g6 25. Rf6 Rd7 26. Rf1 Rde7 27. R6f3 Bf4 28. Rxf4 Rxe3+ 29. Kd2 Re2+ 30. Kd1 R8e4 31. Rxf7 Re1+ 32. Kd2 Rxf1 33. Rxf1 Rxd4+ 34. Kc3 c5 35. b4 b6 36. bxc5 bxc5 37. Rf6 Kg7 38. Rc6 Rf4 39. Rxc5 Rf3+ 40. Kb4 Rxh3 41. Ra5 Rg3 42. Rxa7+ Kf6 43. Rh7 Rxg4 44. Rxh6 Rg2 45. a4 Ke5 46. Kb5 Rb2+ 47. Kc6 Rb4 48. Rxg6 Rxc4+ 49. Kb5 Rc1 50. a5 Kd5 51. Kb6 Rb1+ 52. Kc7 Rc1+ 53. Kb7 Rb1+ 54. Rb6 Rh1 55. Rc6 Rb1+ 56. Kc7 Rh1 57. a6 Rb1 58. Rh6 Ra1 59. Kb7 Kc5 60. a7 Rb1+ 61. Kc7 Ra1 62. Rh5+ Kc4 63. Kb6 1-0

[Event "45th FIDE Olympiad 2024"]
[Site "Budapest"]
[Date "2024.09.19"]
[Round "8.147"]
[White "Mulenga, Prince Daniel"]
[Black "Agopov, Mikael"]
[Result "1/2-1/2"]
[WhiteElo "2184"]
[BlackElo "2451"]
[PlyCount "82"]
[EventDate "2024.09.05"]
[EventType "team-tourn"]
[EventCountry "HUN"]
[WhiteTeam "Zambia"]
[BlackTeam "Finland"]
[WhiteTeamCountry "ZAM"]
[BlackTeamCountry "FIN"]
[TimeControl "40/5400+30:1800+30"]

1. d4 Nf6 2. c4 e6 3. Nf3 d5 4. Nc3 Bb4 5. e3 O-O 6. Bd2 b6 7. cxd5 exd5 8. Rc1 a6 9. Qb3 Be7 10. g3 a5 11. Bg2 Ba6 12. Ne5 c6 13. Na4 b5 14. Nc5 Bxc5 15. Rxc5 b4 16. Rc1 Qd6 17. a3 Bb5 18. axb4 a4 19. Qa3 Nbd7 20. f4 Ne4 21. Bxe4 dxe4 22. Nxd7 Qxd7 23. h3 f5 24. Rc5 Qf7 25. Qa1 Rfd8 26. Kf2 Rd6 27. g4 Rd5 28. Rcc1 Rd6 29. Rc5 Rd5 30. Rcc1 Qe7 31. g5 Qf7 32. Rc3 Qe7 33. Ra3 Rd7 34. h4 Qf7 35. Qc1 Bc4 36. h5 Rd6 37. Qc2 Bb3 38. Qc3 Rb8 39. Raa1 Qe8 40. Rac1 Rb5 41. Ra1 Rbd5 1/2-1/2

[Event "45th FIDE Olympiad 2024"]
[Site "Budapest"]
[Date "2024.09.19"]
[Round "8.148"]
[White "Lahdelma, Henri"]
[Black "Hapaku, Charles"]
[Result "1-0"]
[WhiteElo "2331"]
[BlackElo "2102"]
[PlyCount "129"]
[EventDate "2024.09.05"]
[EventType "team-tourn"]
[EventCountry "HUN"]
[WhiteTeam "Finland"]
[BlackTeam "Zambia"]
[WhiteTeamCountry "FIN"]
[BlackTeamCountry "ZAM"]
[TimeControl "40/5400+30:1800+30"]

1. Nf3 Nf6 2. g3 b6 3. Bg2 Bb7 4. O-O e6 5. c4 Be7 6. Nc3 O-O 7. d4 d5 8. Nd2 Nc6 9. e3 Nb4 10. a3 Nd3 11. Qc2 Nxc1 12. Raxc1 Rc8 13. cxd5 exd5 14. Nb5 a6 15. Na7 Ra8 16. Nc6 Bxc6 17. Qxc6 Ra7 18. Nf3 Bd6 19. Ne5 Qa8 20. Nd3 Qxc6 21. Rxc6 Rd8 22. Nb4 Bxb4 23. axb4 Kf8 24. Ra1 Ke7 25. b5 a5 26. Ra4 Rb7 27. f3 Ne8 28. Bf1 Rd6 29. Rc1 Re6 30. Kf2 Nd6 31. Ra3 f5 32. Rac3 Kd8 33. h4 Ra7 34. Ra1 Rb7 35. Bd3 Kd7 36. Rac1 Ra7 37. b3 Rf6 38. R3c2 h6 39. Ke2 Re6 40. h5 Kd8 41. Rc6 Rf6 42. Rg1 Ke7 43. g4 fxg4 44. Rxg4 Ne8 45. Rc2 Kf8 46. e4 a4 47. Ra2 a3 48. e5 Rf7 49. f4 Re7 50. Kd2 c6 51. Rg6 cxb5 52. Rxb6 Nc7 53. Bxb5 Nxb5 54. Rxb5 Rf7 55. Ke3 Rf5 56. Rxd5 Rxh5 57. b4 Rh3+ 58. Ke4 Rb7 59. Ra5 Rxb4 60. R5xa3 Rh4 61. Ra8+ Kf7 62. R2a7+ Kg6 63. Rg8 Rb1 64. Rgxg7+ Kh5 65. Raf7 1-0

[Event "45th FIDE Olympiad 2024"]
[Site "Budapest"]
[Date "2024.09.19"]
[Round "8.149"]
[White "Maksimovic, Bojan"]
[Black "Bagheri, Amir"]
[Result "1/2-1/2"]
[WhiteElo "2503"]
[BlackElo "2372"]
[PlyCount "105"]
[EventDate "2024.09.05"]
[EventType "team-tourn"]
[EventCountry "HUN"]
[WhiteTeam "Bosnia & Herzegovina"]
[BlackTeam "Monaco"]
[WhiteTeamCountry "BIH"]
[BlackTeamCountry "MNC"]
[TimeControl "40/5400+30:1800+30"]

1. d4 Nf6 2. Bg5 Ne4 3. h4 d5 4. Nd2 Bf5 5. e3 h6 6. Bf4 e6 7. Bd3 Nxd2 8. Qxd2 Bxd3 9. Qxd3 c5 10. Nf3 Nc6 11. O-O cxd4 12. exd4 Bd6 13. Bxd6 Qxd6 14. c3 O-O 15. Rae1 Rab8 16. a3 b5 17. Ne5 Nxe5 18. Rxe5 a5 19. f4 b4 20. axb4 axb4 21. f5 bxc3 22. bxc3 Rfe8 23. Qe3 Rb2 24. h5 Ra8 25. fxe6 f6 26. Ref5 Raa2 27. R5f2 Rxf2 28. Rxf2 Ra1+ 29. Rf1 Rxf1+ 30. Kxf1 Kf8 31. e7+ Ke8 32. Ke2 Qh2 33. Qf3 Qd6 34. Qe3 Qh2 35. Qf3 Qd6 36. Kd2 Kxe7 37. Qf5 Qc6 38. Qg4 Kf8 39. Qg3 Qb6 40. Kc2 Kf7 41. Qd3 Qa5 42. Kb3 Qb6+ 43. Ka4 g5 44. hxg6+ Kg7 45. Ka3 h5 46. c4 dxc4 47. Qxc4 Kxg6 48. Qd5 h4 49. Qe4+ f5 50. Qxh4 Qa5+ 51. Kb3 Qd5+ 52. Kc3 Qxg2 53. Qf4 1/2-1/2

[Event "45th FIDE Olympiad 2024"]
[Site "Budapest"]
[Date "2024.09.19"]
[Round "8.150"]
[White "Efimov, Igor"]
[Black "Burovic, Rijad"]
[Result "1/2-1/2"]
[WhiteElo "2338"]
[BlackElo "2426"]
[PlyCount "162"]
[EventDate "2024.09.05"]
[EventType "team-tourn"]
[EventCountry "HUN"]
[WhiteTeam "Monaco"]
[BlackTeam "Bosnia & Herzegovina"]
[WhiteTeamCountry "MNC"]
[BlackTeamCountry "BIH"]
[TimeControl "40/5400+30:1800+30"]

1. d4 Nf6 2. Nf3 g6 3. c4 Bg7 4. Nc3 O-O 5. Bg5 h6 6. Bh4 c5 7. e3 cxd4 8. Nxd4 Nc6 9. Be2 Nxd4 10. Qxd4 d6 11. Qd2 Be6 12. Rc1 Rc8 13. b3 g5 14. Bg3 d5 15. cxd5 Nxd5 16. Nxd5 Rxc1+ 17. Qxc1 Qxd5 18. O-O Rc8 19. Qa3 Qc5 20. Qa4 Rd8 21. h4 Rd2 22. Qe8+ Bf8 23. Bf3 b6 24. Qb8 Rxa2 25. hxg5 hxg5 26. Rd1 Qc8 27. Qe5 Ra5 28. Bd5 Rxd5 29. Rxd5 f6 30. Qd4 Bxd5 31. Qxd5+ Kg7 32. f4 gxf4 33. Bxf4 e5 34. Bg3 Bc5 35. Kf2 Qf5+ 36. Ke2 Qg4+ 37. Qf3 Qxf3+ 38. gxf3 Kf7 39. Kd3 b5 40. e4 Bd6 41. Be1 Ke6 42. b4 Kd7 43. Kc2 Bf8 44. Kb3 Be7 45. Bf2 a6 46. Be1 Ke6 47. Kc2 Kf7 48. Kd3 Kg6 49. Bd2 Kh5 50. Ke2 Kh4 51. Kf2 Kh3 52. Ke2 Bf8 53. Kf2 Be7 54. Ke2 Bd8 55. Be1 Bb6 56. Bd2 Kh4 57. Be1+ Kh5 58. Kd3 Bd8 59. Bd2 Be7 60. Be1 Kg6 61. Bd2 Bf8 62. Be1 Bh6 63. Bf2 Bg5 64. Be1 Kh5 65. Ke2 Bc1 66. Kd1 Bf4 67. Ke2 Kg5 68. Kd3 Bc1 69. Kc2 Be3 70. Kd3 Kf4 71. Ke2 Bc1 72. Kd1 Kxf3 73. Kxc1 Kxe4 74. Kd2 Kd4 75. Ke2 f5 76. Kf3 Kd3 77. Bg3 Kc4 78. Be1 Kd3 79. Bg3 Kd4 80. Bf2+ Kc4 81. Be1 Kd3 1/2-1/2

[Event "45th FIDE Olympiad 2024"]
[Site "Budapest"]
[Date "2024.09.19"]
[Round "8.151"]
[White "Culum, Sanjin"]
[Black "Meylan, Andre"]
[Result "1-0"]
[WhiteElo "2409"]
[BlackElo "2165"]
[PlyCount "175"]
[EventDate "2024.09.05"]
[EventType "team-tourn"]
[EventCountry "HUN"]
[WhiteTeam "Bosnia & Herzegovina"]
[BlackTeam "Monaco"]
[WhiteTeamCountry "BIH"]
[BlackTeamCountry "MNC"]
[TimeControl "40/5400+30:1800+30"]

1. e4 e6 2. d4 d5 3. Nc3 Nf6 4. Bg5 Be7 5. e5 Nfd7 6. h4 a6 7. Qg4 Bxg5 8. hxg5 c5 9. dxc5 Nxe5 10. Qg3 Nbc6 11. O-O-O f5 12. f4 Nd7 13. Be2 Qa5 14. Qe3 d4 15. Qxe6+ Kd8 16. Nb1 Qxc5 17. Nf3 Re8 18. Qc4 Qd6 19. Ne5 Ndxe5 20. fxe5 Qxe5 21. Bf3 Be6 22. Qa4 Bd5 23. Nd2 Kc7 24. Bxd5 Qxd5 25. Rxh7 Re7 26. Nf3 Rd8 27. Qb3 Qxb3 28. axb3 Rdd7 29. Nh4 Re2 30. Rd2 Re1+ 31. Rd1 Re2 32. Nxf5 Rxg2 33. Rxg7 Rxg7 34. Nxg7 Kd7 35. Nf5 Rxg5 36. Nxd4 Nxd4 37. Rxd4+ Kc6 38. Rc4+ Kb6 39. Rb4+ Kc6 40. Rc4+ Kb6 41. Kb1 Rg2 42. Ka2 Rh2 43. Ka3 Rg2 44. b4 Rg3+ 45. c3 Rg2 46. Rh4 Rg6 47. Rh7 Rf6 48. Ka4 Rg6 49. b3 Rg5 50. c4 Rf5 51. Rh8 Kc7 52. Rh6 Rg5 53. Rh4 Rf5 54. Rd4 Kc6 55. Ka3 Rh5 56. Kb2 Rg5 57. Kc3 Rh5 58. Rd3 Rh4 59. Rd5 Rh3+ 60. Kb2 Rh8 61. Rg5 Rh6 62. Ka3 Rf6 63. Ka4 Rh6 64. Ka5 Rf6 65. b5+ axb5 66. Rxb5 Rf3 67. Rb6+ Kc7 68. b4 Rf5+ 69. c5 Rh5 70. Rg6 Rf5 71. Rg7+ Kc8 72. b5 Rxc5 73. Kb6 Rh5 74. Rg8+ Kd7 75. Rb8 Rg5 76. Rxb7+ Kc8 77. Rh7 Rf5 78. Rh8+ Kd7 79. Ka6 Rf1 80. Kb7 Rf7 81. b6 Rf1 82. Rh2 Rd1 83. Rc2 Rd3 84. Ka7 Ra3+ 85. Kb8 Rd3 86. b7 Rd1 87. Ra2 Kc6 88. Ka8 1-0

[Event "45th FIDE Olympiad 2024"]
[Site "Budapest"]
[Date "2024.09.19"]
[Round "8.152"]
[White "Van Hoolandt, Patrick"]
[Black "Marjanovic, Dejan"]
[Result "0-1"]
[WhiteElo "2036"]
[BlackElo "2365"]
[PlyCount "72"]
[EventDate "2024.09.05"]
[EventType "team-tourn"]
[EventCountry "HUN"]
[WhiteTeam "Monaco"]
[BlackTeam "Bosnia & Herzegovina"]
[WhiteTeamCountry "MNC"]
[BlackTeamCountry "BIH"]
[TimeControl "40/5400+30:1800+30"]

1. d4 e6 2. c4 f5 3. Nf3 Nf6 4. g3 Be7 5. Bg2 d5 6. O-O Ne4 7. Nbd2 Nc6 8. Qc2 h5 9. e3 h4 10. Ne5 hxg3 11. fxg3 Nxe5 12. dxe5 O-O 13. Nxe4 dxe4 14. Bd2 a5 15. Bc3 Bd7 16. Rad1 Qe8 17. b3 Bc6 18. Qe2 Qg6 19. Rf2 Qh6 20. a4 Be8 21. g4 Bg5 22. Bd4 Rd8 23. Kh1 Bxe3 24. Bxe3 Rxd1+ 25. Qxd1 Qxe3 26. Re2 Qf4 27. Qd4 Qxg4 28. Re1 Bc6 29. Rg1 Qh4 30. Rd1 Qh5 31. Re1 Qh4 32. Rd1 Kf7 33. h3 Qg3 34. Rf1 Rh8 35. Qf2 Qxf2 36. Rxf2 e3 {0-} 0-1

[Event "45th FIDE Olympiad 2024"]
[Site "Budapest"]
[Date "2024.09.19"]
[Round "8.153"]
[White "Khusenkhojaev, Mustafokhuja"]
[Black "Bachmann, Axel"]
[Result "1/2-1/2"]
[WhiteElo "2283"]
[BlackElo "2560"]
[PlyCount "101"]
[EventDate "2024.09.05"]
[EventType "team-tourn"]
[EventCountry "HUN"]
[WhiteTeam "Tajikistan"]
[BlackTeam "Paraguay"]
[WhiteTeamCountry "TJK"]
[BlackTeamCountry "PAR"]
[TimeControl "40/5400+30:1800+30"]

1. d4 Nf6 2. c4 e6 3. g3 c5 4. d5 exd5 5. cxd5 d6 6. Nc3 g6 7. Bg2 Bg7 8. Nf3 O-O 9. O-O Re8 10. Bf4 h6 11. Re1 g5 12. Bd2 Bf5 13. h4 g4 14. Nh2 Nbd7 15. e4 Bg6 16. Nxg4 Nxg4 17. Qxg4 Ne5 18. Qe2 c4 19. h5 Bh7 20. Red1 f5 21. Bf4 Nd3 22. Rxd3 cxd3 23. Qxd3 Qb6 24. Qd2 fxe4 25. Be3 Qd8 26. Bxh6 Re5 27. Bf4 Rxh5 28. Nxe4 Be5 29. Bxe5 Rxe5 30. Qh6 Bxe4 31. Bxe4 Qd7 32. Bg2 Rae8 33. Bh3 Qh7 34. Be6+ Kh8 35. Qf6+ Qg7 36. Qh4+ Qh7 37. Qf4 Qg7 38. Rc1 Rf8 39. Qh4+ Qh7 40. Qxh7+ Kxh7 41. Rc2 Re1+ 42. Kg2 Kg6 43. f4 Rh8 44. Kf3 Rh7 45. Rc8 Rf1+ 46. Kg4 Kf6 47. Rf8+ Ke7 48. Rg8 Kf6 49. Rf8+ Ke7 50. Rg8 Kf6 51. Rf8+ 1/2-1/2

[Event "45th FIDE Olympiad 2024"]
[Site "Budapest"]
[Date "2024.09.19"]
[Round "8.154"]
[White "Delgado Ramirez, Neuris"]
[Black "Karimov, Alisher"]
[Result "1/2-1/2"]
[WhiteElo "2484"]
[BlackElo "2240"]
[PlyCount "94"]
[EventDate "2024.09.05"]
[EventType "team-tourn"]
[EventCountry "HUN"]
[WhiteTeam "Paraguay"]
[BlackTeam "Tajikistan"]
[WhiteTeamCountry "PAR"]
[BlackTeamCountry "TJK"]
[TimeControl "40/5400+30:1800+30"]

1. e4 c5 2. Nf3 e6 3. d4 cxd4 4. Nxd4 Nc6 5. Nc3 Qc7 6. Ncb5 Qb8 7. Bd3 Nf6 8. O-O Be7 9. Re1 O-O 10. Bg5 d6 11. c4 Bd7 12. b3 Ne5 13. Nc3 Qd8 14. Rc1 h6 15. Bh4 a6 16. Bb1 Qa5 17. a4 Rfc8 18. Bg3 Bf8 19. Kh1 Ng6 20. h3 Qc5 21. Qd2 Be7 22. Bh2 Bd8 23. f4 Ba5 24. Nf3 Nf8 25. Bg1 Qa3 26. e5 dxe5 27. fxe5 Ne8 28. Nd4 b5 29. Rf1 bxc4 30. Qf4 Qe7 31. bxc4 Ng6 32. Bxg6 fxg6 33. Qe4 Kh7 34. c5 Nc7 35. c6 Be8 36. Nce2 Nd5 37. Nf4 Nxf4 38. Qxf4 Bb6 39. Qe4 Rab8 40. Rc2 Qb4 41. Rfc1 Bxd4 42. Qxd4 Qxd4 43. Bxd4 Rc7 44. a5 Rbc8 45. Bb6 Rxc6 46. Rxc6 Rxc6 47. Rxc6 Bxc6 1/2-1/2

[Event "45th FIDE Olympiad 2024"]
[Site "Budapest"]
[Date "2024.09.19"]
[Round "8.155"]
[White "Ilkhomi, Jaloliddin"]
[Black "Almiron, Antonio"]
[Result "0-1"]
[WhiteElo "2227"]
[BlackElo "2312"]
[PlyCount "128"]
[EventDate "2024.09.05"]
[EventType "team-tourn"]
[EventCountry "HUN"]
[WhiteTeam "Tajikistan"]
[BlackTeam "Paraguay"]
[WhiteTeamCountry "TJK"]
[BlackTeamCountry "PAR"]
[TimeControl "40/5400+30:1800+30"]

1. Nf3 Nf6 2. c4 e6 3. g3 d5 4. Bg2 d4 5. O-O c5 6. d3 Nc6 7. e3 h6 8. exd4 cxd4 9. Na3 Bd6 10. Nc2 e5 11. b4 O-O 12. Re1 Re8 13. Ba3 Bc7 14. b5 Nb8 15. Nd2 Nbd7 16. c5 Rb8 17. Nc4 Nf8 18. Rb1 Nd5 19. Qd2 Nc3 20. b6 axb6 21. cxb6 Nxb1 22. bxc7 Nxd2 23. cxb8=Q Nxc4 24. dxc4 d3 25. Rd1 Nd7 26. Qd6 dxc2 27. Rc1 Qa5 28. Qb4 Qa7 29. Rxc2 Nf6 30. Bc1 e4 31. Be3 Qa6 32. h3 Bd7 33. Rd2 Bc6 34. Qc3 Nd7 35. Bd4 f6 36. Kh2 Ne5 37. Bxe5 Rxe5 38. Re2 Qb6 39. Qe3 Qxe3 40. Rxe3 Kf7 41. Rc3 Ra5 42. a3 f5 43. Kg1 Ke6 44. Kf1 Rc5 45. Ke1 Ke5 46. Bf1 g5 47. Kd2 Kd4 48. Rb3 f4 49. Be2 Rf5 50. Bg4 Rf6 51. Bc8 fxg3 52. fxg3 Rf2+ 53. Ke1 Rf3 54. Rxf3 exf3 55. Kf2 Kxc4 56. Be6+ Kc3 57. Ke3 Kb2 58. a4 Ka3 59. a5 Kb4 60. Bg4 Kxa5 61. Bxf3 Bxf3 62. Kxf3 b5 63. Kg4 b4 64. Kh5 b3 {0-} 0-1

[Event "45th FIDE Olympiad 2024"]
[Site "Budapest"]
[Date "2024.09.19"]
[Round "8.156"]
[White "Latorre, Matias"]
[Black "Kabilov, Amin"]
[Result "1/2-1/2"]
[WhiteElo "2264"]
[BlackElo "2212"]
[PlyCount "101"]
[EventDate "2024.09.05"]
[EventType "team-tourn"]
[EventCountry "HUN"]
[WhiteTeam "Paraguay"]
[BlackTeam "Tajikistan"]
[WhiteTeamCountry "PAR"]
[BlackTeamCountry "TJK"]
[TimeControl "40/5400+30:1800+30"]

1. d4 Nf6 2. c4 g6 3. Nc3 Bg7 4. e4 d6 5. Be2 O-O 6. Be3 Nc6 7. d5 Nb8 8. h4 h5 9. Qd2 c6 10. Nf3 Na6 11. Ng5 Nc7 12. f3 e6 13. dxe6 Bxe6 14. Nxe6 Nxe6 15. Rd1 Qa5 16. O-O Rfd8 17. f4 Rd7 18. f5 Nc5 19. Bg5 Qb6 20. Kh1 Nfxe4 21. Nxe4 Nxe4 22. Qf4 gxf5 23. Rd3 f6 24. Qxf5 fxg5 25. Qxe4 Be5 26. Qg6+ Rg7 27. Qe6+ Kh8 28. Rdf3 Qd8 29. Qh6+ Kg8 30. Qe6+ Kh8 31. Rf7 g4 32. Qh6+ Kg8 33. Qxh5 Qe8 34. Rxg7+ Kxg7 35. Qxg4+ Qg6 36. Qd7+ Kg8 37. Bg4 Qh6 38. Qe6+ Qxe6 39. Bxe6+ Kh8 40. g4 Re8 41. Bd7 Re7 42. Bc8 Bxb2 43. Rb1 Re2 44. Bxb7 Be5 45. Bxc6 Rh2+ 46. Kg1 Rxh4 47. Bf3 Rh3 48. Kf2 Kg7 49. Rh1 Bd4+ 50. Kg2 Rxh1 51. Kxh1 1/2-1/2

[Event "45th FIDE Olympiad 2024"]
[Site "Budapest"]
[Date "2024.09.19"]
[Round "8.157"]
[White "Susilodinata, Andrean"]
[Black "Meier, Georg"]
[Result "0-1"]
[WhiteElo "2393"]
[BlackElo "2591"]
[PlyCount "74"]
[EventDate "2024.09.05"]
[EventType "team-tourn"]
[EventCountry "HUN"]
[WhiteTeam "Indonesia"]
[BlackTeam "Uruguay"]
[WhiteTeamCountry "INA"]
[BlackTeamCountry "URU"]
[TimeControl "40/5400+30:1800+30"]

1. e4 e6 2. d4 d5 3. exd5 exd5 4. Nf3 Nf6 5. Bd3 Bd6 6. Qe2+ Be7 7. O-O O-O 8. Re1 Bd6 9. Bg5 h6 10. Bh4 g5 11. Bg3 Re8 12. Qf1 Rxe1 13. Qxe1 Nc6 14. c3 Nh5 15. Ne5 Nxg3 16. Nxc6 bxc6 17. fxg3 c5 18. Nd2 Rb8 19. b3 cxd4 20. cxd4 c5 21. dxc5 Bxc5+ 22. Kh1 Rb6 23. Nf3 Bb4 24. Qe3 Qe7 25. Qd4 Bb7 26. Rc1 Rc6 27. Rxc6 Bxc6 28. h4 Bc5 29. Qg4 Bd7 30. Bf5 h5 31. Bh7+ Kxh7 32. Nxg5+ Kg6 33. Qd1 Bg4 34. Qd3+ Bf5 35. Qf1 d4 36. Kh2 d3 37. Nf3 f6 {0-} 0-1

[Event "45th FIDE Olympiad 2024"]
[Site "Budapest"]
[Date "2024.09.19"]
[Round "8.158"]
[White "Rodriguez Vila, Andres"]
[Black "Cahaya, Satria Duta"]
[Result "1-0"]
[WhiteElo "2417"]
[BlackElo "2219"]
[PlyCount "149"]
[EventDate "2024.09.05"]
[EventType "team-tourn"]
[EventCountry "HUN"]
[WhiteTeam "Uruguay"]
[BlackTeam "Indonesia"]
[WhiteTeamCountry "URU"]
[BlackTeamCountry "INA"]
[TimeControl "40/5400+30:1800+30"]

1. d4 Nf6 2. Nc3 d5 3. Bf4 e6 4. e3 Bb4 5. Nge2 O-O 6. a3 Be7 7. h4 c5 8. h5 Nc6 9. Qd2 Bd7 10. Ng3 cxd4 11. exd4 Qb6 12. O-O-O Rfc8 13. h6 g6 14. Na4 Qd8 15. Kb1 b6 16. Nc3 Na5 17. Be5 Ng4 18. Bf4 b5 19. Na2 Nc4 20. Bxc4 Rxc4 21. f3 Nf6 22. Nf1 a5 23. Ne3 Rc6 24. c3 Ne8 25. Rhe1 Rb6 26. Nc2 Nd6 27. g4 Nc4 28. Qh2 Rb7 29. Bc1 b4 30. cxb4 Qb6 31. Rd3 Qa6 32. Rc3 Ba4 33. b3 axb4 34. Ncxb4 Bxb4 35. axb4 Bxb3 36. Rxb3 Rba7 37. Re2 Qa4 38. Rc3 Qd1 39. Rg2 Na3+ 40. Ka1 Nb5 41. Qe5 Kf8 42. Qe3 e5 43. Rd3 Qf1 44. Rc2 exd4 45. Qd2 Na3 46. Rxa3 Rxa3 47. b5 d3 48. Rb2 d4 49. Kb1 Qxf3 50. b6 Qe4 51. Qf4 f5 52. gxf5 gxf5 53. Qxe4 fxe4 54. Rf2+ Ke7 55. Bxa3+ Rxa3 56. b7 Rb3+ 57. Rb2 d2 58. Rxb3 d1=Q+ 59. Nc1 d3 60. Rc3 d2 61. b8=Q dxc1=R+ 62. Rxc1 Qd3+ 63. Rc2 Qd1+ 64. Kb2 Qd4+ 65. Rc3 Qd2+ 66. Kb3 Qd1+ 67. Kc4 Qe2+ 68. Kb4 Qb2+ 69. Rb3 Qd4+ 70. Ka5 Qa1+ 71. Kb5 Qf1+ 72. Kb6 Qf6+ 73. Kb7 Qxh6 74. Qc7+ Kf8 75. Ra3 1-0

[Event "45th FIDE Olympiad 2024"]
[Site "Budapest"]
[Date "2024.09.19"]
[Round "8.159"]
[White "Ulhaq, Zacky Dhia"]
[Black "Vazquez, Facundo"]
[Result "0-1"]
[WhiteElo "2203"]
[BlackElo "2388"]
[PlyCount "118"]
[EventDate "2024.09.05"]
[EventType "team-tourn"]
[EventCountry "HUN"]
[WhiteTeam "Indonesia"]
[BlackTeam "Uruguay"]
[WhiteTeamCountry "INA"]
[BlackTeamCountry "URU"]
[TimeControl "40/5400+30:1800+30"]

1. d4 Nf6 2. Bf4 g6 3. Nc3 d5 4. e3 Nh5 5. Bg5 c6 6. Be2 h6 7. Bh4 Ng7 8. f4 Nf5 9. Bf2 Nd6 10. Nf3 Qb6 11. a3 Bf5 12. b3 Nd7 13. Ne5 Nf6 14. O-O h5 15. Be1 Bg7 16. h3 Nfe4 17. Nxe4 Bxe4 18. c4 Nf5 19. Bf2 Rd8 20. c5 Qc7 21. Bf3 Bxe5 22. Bxe4 dxe4 23. fxe5 Qd7 24. Qc2 Qd5 25. Qc4 g5 26. Qxd5 Rxd5 27. Kh2 f6 28. Bg1 e6 29. exf6 Kf7 30. g3 Kxf6 31. Kg2 Kg6 32. Rad1 Rhd8 33. Bf2 g4 34. Bg1 e5 35. Rde1 Re8 36. hxg4 hxg4 37. dxe5 Rexe5 38. b4 Rd3 39. Rd1 Rxa3 40. Ra1 Rxa1 41. Rxa1 a6 42. Rf1 a5 43. bxa5 Rxc5 44. Rf4 Rc2+ 45. Bf2 Nxe3+ 46. Kg1 Rc1+ 47. Kh2 Nf1+ 48. Kg2 e3 49. Rxg4+ Kf5 50. Rb4 exf2 51. Kxf2 Nd2 52. Rxb7 Ne4+ 53. Ke3 Nd6 54. Rh7 Rc3+ 55. Ke2 Rxg3 56. Kd2 Nc4+ 57. Kc2 Nxa5 58. Rh4 Ke6 59. Rh5 Nc4 {0-} 0-1

[Event "45th FIDE Olympiad 2024"]
[Site "Budapest"]
[Date "2024.09.19"]
[Round "8.160"]
[White "Roselli Mailhe, Bernardo"]
[Black "Mariano, Fabian Glen"]
[Result "1/2-1/2"]
[WhiteElo "2362"]
[BlackElo "2121"]
[PlyCount "140"]
[EventDate "2024.09.05"]
[EventType "team-tourn"]
[EventCountry "HUN"]
[WhiteTeam "Uruguay"]
[BlackTeam "Indonesia"]
[WhiteTeamCountry "URU"]
[BlackTeamCountry "INA"]
[TimeControl "40/5400+30:1800+30"]

1. d4 Nf6 2. c4 e6 3. Nf3 b6 4. a3 Bb7 5. Nc3 d5 6. cxd5 Nxd5 7. e3 Nxc3 8. bxc3 Be7 9. Bb5+ c6 10. Bd3 O-O 11. O-O c5 12. e4 Qc7 13. Qe2 Nd7 14. Bb2 c4 15. Bc2 b5 16. Rad1 Rfd8 17. Ne1 a5 18. f4 b4 19. axb4 axb4 20. cxb4 Bxb4 21. Rf3 Nf6 22. Rh3 g6 23. Bb1 Qxf4 24. Qxc4 Ba6 25. Nd3 Bxc4 26. Nxf4 e5 27. Nd3 Bxd3 28. Rhxd3 exd4 29. Bxd4 Nxe4 30. Bb6 Rxd3 31. Bxd3 Bc5+ 32. Bxc5 Nxc5 33. Be2 Ra7 34. Bf3 Kg7 35. Rd4 Ne6 36. Rb4 f5 37. Rb7+ Rxb7 38. Bxb7 Kf6 39. Kf2 Ke5 40. g3 Nc5 41. Ba8 Kd4 42. Bc6 g5 43. Be8 Kd3 44. Kf3 Ne6 45. Bd7 Nd4+ 46. Kf2 Ke4 47. Bc8 h5 48. Bb7+ Ke5 49. Ke3 g4 50. Kf2 Ne6 51. Bc6 Kf6 52. Bb7 Kg5 53. Bc6 h4 54. Bb7 Nc5 55. Bc6 h3 56. Ba8 Kf6 57. Ke3 Ke5 58. Bc6 Ne6 59. Bb7 Kf6 60. Bc6 Kg5 61. Bb7 f4+ 62. gxf4+ Nxf4 63. Bc8 Nd5+ 64. Kf2 Kf4 65. Kg1 Ne3 66. Bxg4 Nxg4 67. Kh1 Ke3 68. Kg1 Nf2 69. Kf1 Kf3 70. Kg1 Ke2 1/2-1/2